[Event "Early-Titled-Tuesday-Blitz-February-20-2024"]
[Site "Chess.com"]
[Date "2024.02.20"]
[Round "4"]
[White "David_George21"]
[Black "SirStrateg"]
[Result "0-1"]
[WhiteElo "2327"]
[BlackElo "2653"]
[TimeControl "180+1"]
[EndTime "8:39:07 PST"]
[Termination "SirStrateg won by resignation"]

1. e4 {[%clk 0:03:00.9]} 1... d6 {[%clk 0:03:00.4]} 2. d4 {[%clk 0:02:59.7]}
2... Nf6 {[%clk 0:03:00.9]} 3. Nc3 {[%clk 0:02:59.5]} 3... c6 {[%clk 0:03:01.5]}
4. f4 {[%clk 0:02:57.1]} 4... Qa5 {[%clk 0:03:01.1]} 5. Bd3 {[%clk 0:02:57]}
5... e5 {[%clk 0:03:01.2]} 6. Nf3 {[%clk 0:02:56]} 6... exd4 {[%clk 0:03:01.6]}
7. Nxd4 {[%clk 0:02:55.3]} 7... g6 {[%clk 0:03:02.3]} 8. Be3 {[%clk 0:02:54.7]}
8... Bg7 {[%clk 0:03:01.4]} 9. h3 {[%clk 0:02:53.9]} 9... O-O {[%clk 0:03:01.7]}
10. O-O {[%clk 0:02:53.7]} 10... Nbd7 {[%clk 0:03:01.1]} 11. Qf3 {[%clk
0:02:52.2]} 11... a6 {[%clk 0:02:56]} 12. g4 {[%clk 0:02:50.1]} 12... Re8 {[%clk
0:02:50.4]} 13. g5 {[%clk 0:02:39.1]} 13... Nh5 {[%clk 0:02:49.8]} 14. Rad1
{[%clk 0:02:36.4]} 14... Qc7 {[%clk 0:02:43]} 15. Qg2 {[%clk 0:02:30.7]} 15...
b5 {[%clk 0:02:39.8]} 16. a3 {[%clk 0:02:27.7]} 16... Bb7 {[%clk 0:02:39.7]} 17.
Be2 {[%clk 0:02:27.3]} 17... c5 {[%clk 0:02:40.1]} 18. Nf3 {[%clk 0:02:25.7]}
18... Bxc3 {[%clk 0:02:31.9]} 19. bxc3 {[%clk 0:02:25.4]} 19... Bxe4 {[%clk
0:02:31.8]} 20. Bd3 {[%clk 0:02:18.4]} 20... Bc6 {[%clk 0:02:26.3]} 21. Rde1
{[%clk 0:02:18.2]} 21... Nb6 {[%clk 0:02:24.2]} 22. Bd2 {[%clk 0:02:12.1]} 22...
Nd5 {[%clk 0:02:07.1]} 23. f5 {[%clk 0:02:12.3]} 23... Ndf4 {[%clk 0:02:01.1]}
24. Qg4 {[%clk 0:02:11.8]} 24... Nxd3 {[%clk 0:01:56.2]} 25. cxd3 {[%clk
0:02:12.7]} 25... Bd7 {[%clk 0:01:51.7]} 26. Nh4 {[%clk 0:02:05.9]} 26... Rxe1
{[%clk 0:01:48.1]} 27. Bxe1 {[%clk 0:02:03.6]} 27... Re8 {[%clk 0:01:44.3]} 28.
Qf3 {[%clk 0:02:00.4]} 28... Bc6 {[%clk 0:01:44.3]} 29. Qf2 {[%clk 0:02:00.2]}
29... Qe7 {[%clk 0:01:42.4]} 30. Bd2 {[%clk 0:01:57.2]} 30... Qe5 {[%clk
0:01:27.8]} 31. fxg6 {[%clk 0:01:29.8]} 31... fxg6 {[%clk 0:01:14.5]} 32. Re1
{[%clk 0:01:29.6]} 32... Qd5 {[%clk 0:01:03.9]} 33. Rxe8+ {[%clk 0:01:27.7]}
33... Bxe8 {[%clk 0:01:04.8]} 34. Qf3 {[%clk 0:01:19.5]} 34... Bc6 {[%clk
0:01:03.2]} 35. Qxd5+ {[%clk 0:01:18.7]} 35... Bxd5 {[%clk 0:01:03.6]} 36. Kf2
{[%clk 0:01:19.1]} 36... Kf7 {[%clk 0:01:03.2]} 37. Ng2 {[%clk 0:01:14]} 37...
Bxg2 {[%clk 0:01:02.9]} 38. Kxg2 {[%clk 0:01:14.9]} 38... Ke6 {[%clk 0:01:03.1]}
39. Kf3 {[%clk 0:01:14.4]} 39... Kf5 {[%clk 0:01:02.1]} 40. c4 {[%clk
0:01:11.1]} 40... Ng7 {[%clk 0:00:59.8]} 41. h4 {[%clk 0:01:10]} 41... Ne6
{[%clk 0:00:58.4]} 42. Bc3 {[%clk 0:01:10.6]} 42... Nc7 {[%clk 0:00:52.3]} 43.
Bd2 {[%clk 0:00:56.9]} 43... Ne6 {[%clk 0:00:52.5]} 44. Bc3 {[%clk 0:00:56.6]}
44... Nf4 {[%clk 0:00:52]} 45. Ba5 {[%clk 0:00:52.5]} 45... Nxd3 {[%clk
0:00:50.6]} 46. Bc7 {[%clk 0:00:50.6]} 46... Ne5+ {[%clk 0:00:50.8]} 47. Ke3
{[%clk 0:00:46.9]} 47... Nxc4+ {[%clk 0:00:51.7]} 48. Kd3 {[%clk 0:00:47.8]}
48... Ke5 {[%clk 0:00:50]} 49. a4 {[%clk 0:00:47.7]} 49... Kd5 {[%clk
0:00:50.1]} 50. axb5 {[%clk 0:00:47.6]} 50... axb5 {[%clk 0:00:50.5]} 51. Kc3
{[%clk 0:00:48.3]} 51... Ne5 {[%clk 0:00:49.1]} 52. Bd8 {[%clk 0:00:46.7]} 52...
Nf3 {[%clk 0:00:49.3]} 53. Bf6 {[%clk 0:00:45.7]} 53... Nxh4 {[%clk 0:00:49.7]}
54. Bd8 {[%clk 0:00:46.6]} 54... Nf5 {[%clk 0:00:49.6]} 55. Kd3 {[%clk
0:00:46.2]} 55... h5 {[%clk 0:00:49.2]} 56. gxh6 {[%clk 0:00:44.4]} 56... Nxh6
{[%clk 0:00:49.5]} 57. Bg5 {[%clk 0:00:45.3]} 57... Nf5 {[%clk 0:00:49.8]} 58.
Bd2 {[%clk 0:00:45.9]} 58... b4 {[%clk 0:00:49.8]} 59. Kc2 {[%clk 0:00:45.9]}
59... Nd4+ {[%clk 0:00:47.7]} 60. Kd3 {[%clk 0:00:46.1]} 60... c4+ {[%clk
0:00:48]} 61. Ke3 {[%clk 0:00:46.6]} 61... c3 {[%clk 0:00:48.5]} 62. Bc1 {[%clk
0:00:47.2]} 62... Kc4 {[%clk 0:00:48.4]} 63. Ke4 {[%clk 0:00:46.5]} 63... b3
{[%clk 0:00:48.9]} 0-1

[Event "Early-Titled-Tuesday-Blitz-February-20-2024"]
[Site "Chess.com"]
[Date "2024.02.20"]
[Round "4"]
[White "KnightmareJoker"]
[Black "Muracle"]
[Result "0-1"]
[WhiteElo "2177"]
[BlackElo "2475"]
[TimeControl "180+1"]
[EndTime "8:39:07 PST"]
[Termination "Muracle won by resignation"]

1. e4 {[%clk 0:03:00.9]} 1... c6 {[%clk 0:03:00.2]} 2. d4 {[%clk 0:03:00.9]}
2... d5 {[%clk 0:03:00.8]} 3. exd5 {[%clk 0:03:01.8]} 3... cxd5 {[%clk
0:03:01.6]} 4. Bd3 {[%clk 0:03:02.6]} 4... Nc6 {[%clk 0:03:01.2]} 5. c3 {[%clk
0:03:02.9]} 5... Nf6 {[%clk 0:03:01.7]} 6. Bf4 {[%clk 0:03:03]} 6... Bg4 {[%clk
0:03:00.6]} 7. Qb3 {[%clk 0:03:03.4]} 7... Qd7 {[%clk 0:03:01.1]} 8. Nd2 {[%clk
0:03:04]} 8... e6 {[%clk 0:03:01.6]} 9. Ngf3 {[%clk 0:03:04]} 9... Bxf3 {[%clk
0:03:02.3]} 10. Nxf3 {[%clk 0:03:03.7]} 10... Bd6 {[%clk 0:03:03]} 11. Bg3
{[%clk 0:03:02.8]} 11... O-O {[%clk 0:03:01.9]} 12. O-O {[%clk 0:03:00.4]} 12...
Bxg3 {[%clk 0:03:01.6]} 13. hxg3 {[%clk 0:03:01.3]} 13... Ne4 {[%clk 0:02:59]}
14. Bxe4 {[%clk 0:02:53.9]} 14... dxe4 {[%clk 0:02:59.9]} 15. Ng5 {[%clk
0:02:53.5]} 15... Qd5 {[%clk 0:02:55.4]} 16. Qxd5 {[%clk 0:02:53.4]} 16... exd5
{[%clk 0:02:54.6]} 17. Nh3 {[%clk 0:02:54.1]} 17... f5 {[%clk 0:02:52.1]} 18.
Nf4 {[%clk 0:02:53.7]} 18... Ne7 {[%clk 0:02:52.7]} 19. a4 {[%clk 0:02:35.5]}
19... Kf7 {[%clk 0:02:48.6]} 20. a5 {[%clk 0:02:32.3]} 20... g5 {[%clk 0:02:49]}
21. Ne2 {[%clk 0:02:24.5]} 21... Rfc8 {[%clk 0:02:49]} 22. Nc1 {[%clk
0:02:13.9]} 22... Ke6 {[%clk 0:02:46.1]} 23. Nb3 {[%clk 0:02:14.3]} 23... Kd6
{[%clk 0:02:43.4]} 24. a6 {[%clk 0:02:02.1]} 24... b6 {[%clk 0:02:41.7]} 25. Nd2
{[%clk 0:01:54.3]} 25... Rf8 {[%clk 0:02:40.7]} 26. Nb1 {[%clk 0:01:53.1]} 26...
Rf6 {[%clk 0:02:38.7]} 27. Na3 {[%clk 0:01:53.3]} 27... Nc8 {[%clk 0:02:32.2]}
28. Rfc1 {[%clk 0:01:45.5]} 28... Kc6 {[%clk 0:02:25.5]} 29. c4 {[%clk
0:01:44.8]} 29... Nd6 {[%clk 0:02:25.8]} 30. c5 {[%clk 0:01:37.8]} 30... Nc4
{[%clk 0:02:21.8]} 31. Nxc4 {[%clk 0:01:35.3]} 31... dxc4 {[%clk 0:02:22.7]} 32.
Rxc4 {[%clk 0:01:32.9]} 32... Kd5 {[%clk 0:02:20.8]} 33. b3 {[%clk 0:01:26.1]}
33... Rc6 {[%clk 0:02:08.3]} 34. Rac1 {[%clk 0:01:17.9]} 34... b5 {[%clk
0:02:05]} 35. R4c2 {[%clk 0:01:05.4]} 35... Rac8 {[%clk 0:01:52.6]} 36. Ra2
{[%clk 0:00:57.5]} 36... Kxd4 {[%clk 0:01:50]} 37. b4 {[%clk 0:00:58.1]} 37...
Ke5 {[%clk 0:01:44.7]} 38. Rd1 {[%clk 0:00:58.5]} 38... Ke6 {[%clk 0:01:43.7]}
39. Kf1 {[%clk 0:00:55.8]} 39... R8c7 {[%clk 0:01:43.3]} 40. Rad2 {[%clk
0:00:52.4]} 40... Rxa6 {[%clk 0:01:41.5]} 41. Rd6+ {[%clk 0:00:53]} 41... Rxd6
{[%clk 0:01:39.9]} 42. Rxd6+ {[%clk 0:00:53.9]} 42... Ke5 {[%clk 0:01:38.5]} 43.
Ke2 {[%clk 0:00:50.7]} 43... a5 {[%clk 0:01:33.8]} 44. bxa5 {[%clk 0:00:45.1]}
44... Rxc5 {[%clk 0:01:34.4]} 45. Rb6 {[%clk 0:00:45.6]} 45... Rc2+ {[%clk
0:01:30]} 46. Ke1 {[%clk 0:00:46.1]} 46... Rb2 {[%clk 0:01:23.5]} 47. a6 {[%clk
0:00:44.7]} 47... b4 {[%clk 0:01:23.8]} 48. Rb5+ {[%clk 0:00:40.4]} 48... Kd4
{[%clk 0:01:21.8]} 49. Rxf5 {[%clk 0:00:39.1]} 49... Ra2 {[%clk 0:01:18.2]} 50.
Rxg5 {[%clk 0:00:31.2]} 50... Rxa6 {[%clk 0:01:14]} 51. f4 {[%clk 0:00:28.6]}
51... Ke3 {[%clk 0:01:10.4]} 52. Rd5 {[%clk 0:00:21.7]} 52... b3 {[%clk
0:01:08.6]} 53. Rd1 {[%clk 0:00:21.3]} 53... b2 {[%clk 0:01:07.4]} 54. f5 {[%clk
0:00:14.5]} 54... Ra1 {[%clk 0:01:07.4]} 0-1

[Event "Early-Titled-Tuesday-Blitz-February-20-2024"]
[Site "Chess.com"]
[Date "2024.02.20"]
[Round "4"]
[White "Rakhmanov_Aleksandr"]
[Black "FairChess_on_YouTube"]
[Result "0-1"]
[WhiteElo "2870"]
[BlackElo "3077"]
[TimeControl "180+1"]
[EndTime "8:39:11 PST"]
[Termination "FairChess_on_YouTube won on time"]

1. c4 {[%clk 0:03:00.9]} 1... e5 {[%clk 0:02:58.6]} 2. Nf3 {[%clk 0:02:59.7]}
2... e4 {[%clk 0:02:52.6]} 3. Nd4 {[%clk 0:03:00]} 3... Nc6 {[%clk 0:02:53.3]}
4. e3 {[%clk 0:02:59.8]} 4... Nf6 {[%clk 0:02:46.9]} 5. Nc3 {[%clk 0:02:59.3]}
5... Bb4 {[%clk 0:02:44.6]} 6. Qb3 {[%clk 0:02:38.9]} 6... Bc5 {[%clk 0:02:32]}
7. Nde2 {[%clk 0:02:28.3]} 7... O-O {[%clk 0:02:24.7]} 8. Ng3 {[%clk 0:02:28.1]}
8... Re8 {[%clk 0:02:25.3]} 9. a3 {[%clk 0:02:20.5]} 9... a5 {[%clk 0:02:12.8]}
10. Qc2 {[%clk 0:02:20]} 10... Qe7 {[%clk 0:02:10.8]} 11. Nd5 {[%clk 0:02:20]}
11... Qe5 {[%clk 0:02:08.3]} 12. Nxf6+ {[%clk 0:02:16.9]} 12... gxf6 {[%clk
0:02:05.8]} 13. d4 {[%clk 0:02:10.4]} 13... exd3 {[%clk 0:01:52.4]} 14. Bxd3
{[%clk 0:02:10.1]} 14... Nd4 {[%clk 0:01:48.9]} 15. Qd1 {[%clk 0:02:07.2]} 15...
a4 {[%clk 0:01:29]} 16. O-O {[%clk 0:01:29.6]} 16... Nb3 {[%clk 0:01:28.6]} 17.
Nf5 {[%clk 0:01:24.7]} 17... Kh8 {[%clk 0:01:23.3]} 18. Rb1 {[%clk 0:00:38.6]}
18... Rg8 {[%clk 0:01:02.5]} 19. f4 {[%clk 0:00:33]} 19... Qe8 {[%clk
0:00:58.3]} 20. Rf3 {[%clk 0:00:31.3]} 20... d5 {[%clk 0:00:56.8]} 21. Rh3
{[%clk 0:00:29]} 21... Rg6 {[%clk 0:00:49.4]} 22. Qh5 {[%clk 0:00:28.8]} 22...
Qg8 {[%clk 0:00:48.3]} 23. Kf1 {[%clk 0:00:12.5]} 23... dxc4 {[%clk 0:00:45.5]}
24. Bxc4 {[%clk 0:00:10.7]} 24... Be6 {[%clk 0:00:30.7]} 25. Bxe6 {[%clk
0:00:07.7]} 25... fxe6 {[%clk 0:00:31.6]} 26. Nh4 {[%clk 0:00:07]} 26... Rg4
{[%clk 0:00:30.4]} 27. Ke2 {[%clk 0:00:03.5]} 27... Rxg2+ {[%clk 0:00:26.4]} 28.
Nxg2 {[%clk 0:00:02.6]} 28... Qxg2+ {[%clk 0:00:27.3]} 29. Ke1 {[%clk
0:00:02.4]} 29... Qg1+ {[%clk 0:00:25.4]} 30. Ke2 {[%clk 0:00:02.7]} 30... Qg2+
{[%clk 0:00:26]} 31. Ke1 {[%clk 0:00:03.3]} 31... Qe4 {[%clk 0:00:24.8]} 32. Qh6
{[%clk 0:00:01.3]} 32... Bf8 {[%clk 0:00:21]} 0-1

[Event "Early-Titled-Tuesday-Blitz-February-20-2024"]
[Site "Chess.com"]
[Date "2024.02.20"]
[Round "4"]
[White "IMRosen"]
[Black "Dubs123"]
[Result "1-0"]
[WhiteElo "2665"]
[BlackElo "2373"]
[TimeControl "180+1"]
[EndTime "8:39:12 PST"]
[Termination "IMRosen won by resignation"]

1. d4 {[%clk 0:03:00.9]} 1... Nf6 {[%clk 0:02:56.6]} 2. Bf4 {[%clk 0:02:58.9]}
2... e6 {[%clk 0:02:51.9]} 3. e3 {[%clk 0:02:59.2]} 3... Be7 {[%clk 0:02:43.2]}
4. Nf3 {[%clk 0:02:59.2]} 4... b6 {[%clk 0:02:43.1]} 5. Nbd2 {[%clk 0:02:58.4]}
5... Bb7 {[%clk 0:02:43.3]} 6. Bd3 {[%clk 0:02:57.3]} 6... d6 {[%clk 0:02:43.4]}
7. c4 {[%clk 0:02:55.5]} 7... Nbd7 {[%clk 0:02:43.3]} 8. Bg3 {[%clk 0:02:54.7]}
8... O-O {[%clk 0:02:36.1]} 9. Qc2 {[%clk 0:02:54.8]} 9... c5 {[%clk 0:02:33.6]}
10. O-O {[%clk 0:02:27.9]} 10... Rc8 {[%clk 0:02:29.9]} 11. Rad1 {[%clk
0:02:28]} 11... Re8 {[%clk 0:02:23.2]} 12. Qb1 {[%clk 0:02:18.4]} 12... Bf8
{[%clk 0:02:18.6]} 13. Ng5 {[%clk 0:02:18.1]} 13... g6 {[%clk 0:02:15.9]} 14. b3
{[%clk 0:02:01.4]} 14... Qc7 {[%clk 0:02:04.6]} 15. Nge4 {[%clk 0:01:58.7]}
15... e5 {[%clk 0:01:58]} 16. Nxf6+ {[%clk 0:01:46.2]} 16... Nxf6 {[%clk
0:01:57.6]} 17. d5 {[%clk 0:01:46.9]} 17... Bg7 {[%clk 0:01:53.2]} 18. Rde1
{[%clk 0:01:44.9]} 18... b5 {[%clk 0:01:37.6]} 19. e4 {[%clk 0:01:39.8]} 19...
bxc4 {[%clk 0:01:37.1]} 20. Nxc4 {[%clk 0:01:39.5]} 20... Nd7 {[%clk 0:01:34.2]}
21. h4 {[%clk 0:01:24.6]} 21... h5 {[%clk 0:01:30.1]} 22. f3 {[%clk 0:01:24.2]}
22... Nb6 {[%clk 0:01:25.4]} 23. Ne3 {[%clk 0:01:19]} 23... Nd7 {[%clk
0:01:05.2]} 24. Bf2 {[%clk 0:01:18.3]} 24... a5 {[%clk 0:00:58.4]} 25. Qb2
{[%clk 0:01:14.7]} 25... Ra8 {[%clk 0:00:56.8]} 26. Rc1 {[%clk 0:01:05.3]} 26...
Ba6 {[%clk 0:00:54.7]} 27. Bxa6 {[%clk 0:00:54]} 27... Rxa6 {[%clk 0:00:55.6]}
28. Qe2 {[%clk 0:00:51.7]} 28... Rea8 {[%clk 0:00:51]} 29. Rc2 {[%clk
0:00:52.2]} 29... Qd8 {[%clk 0:00:46.1]} 30. g4 {[%clk 0:00:49.9]} 30... Qf6
{[%clk 0:00:26.6]} 31. gxh5 {[%clk 0:00:37.6]} 31... gxh5 {[%clk 0:00:26.3]} 32.
Nf5 {[%clk 0:00:38.2]} 32... Nf8 {[%clk 0:00:23.8]} 33. Be3 {[%clk 0:00:34.8]}
33... Nh7 {[%clk 0:00:17.9]} 34. Kh2 {[%clk 0:00:31.3]} 34... Kh8 {[%clk
0:00:17.6]} 35. Rg1 {[%clk 0:00:30.8]} 35... Bf8 {[%clk 0:00:17]} 36. Qb5 {[%clk
0:00:21.7]} 36... Be7 {[%clk 0:00:15.3]} 37. Rcg2 {[%clk 0:00:22.3]} 37... R6a7
{[%clk 0:00:13]} 38. Bh6 {[%clk 0:00:22.1]} 38... a4 {[%clk 0:00:06.6]} 39. Bg7+
{[%clk 0:00:22.3]} 1-0

[Event "Early-Titled-Tuesday-Blitz-February-20-2024"]
[Site "Chess.com"]
[Date "2024.02.20"]
[Round "4"]
[White "cukin84"]
[Black "dianamirza"]
[Result "0-1"]
[WhiteElo "2226"]
[BlackElo "1989"]
[TimeControl "180+1"]
[EndTime "8:39:12 PST"]
[Termination "dianamirza won by checkmate"]

1. e4 {[%clk 0:03:00.9]} 1... c5 {[%clk 0:02:59.2]} 2. Nc3 {[%clk 0:02:59.9]}
2... a6 {[%clk 0:02:58]} 3. f4 {[%clk 0:02:58.6]} 3... Nc6 {[%clk 0:02:57.4]} 4.
Nf3 {[%clk 0:02:58.2]} 4... b5 {[%clk 0:02:57.1]} 5. d3 {[%clk 0:02:57.9]} 5...
Bb7 {[%clk 0:02:56.9]} 6. g3 {[%clk 0:02:57.9]} 6... e6 {[%clk 0:02:57.1]} 7.
Bg2 {[%clk 0:02:57.8]} 7... Nf6 {[%clk 0:02:57.7]} 8. O-O {[%clk 0:02:57.7]}
8... Be7 {[%clk 0:02:58.3]} 9. e5 {[%clk 0:02:57.1]} 9... Nd5 {[%clk 0:02:57.9]}
10. Ne4 {[%clk 0:02:52.9]} 10... O-O {[%clk 0:02:52.5]} 11. c4 {[%clk
0:02:51.9]} 11... Nb6 {[%clk 0:02:50.6]} 12. b3 {[%clk 0:02:51.4]} 12... Nd4
{[%clk 0:02:44.1]} 13. Nxd4 {[%clk 0:02:47.4]} 13... cxd4 {[%clk 0:02:45]} 14.
Nf6+ {[%clk 0:02:24]} 14... Bxf6 {[%clk 0:02:41.1]} 15. Bxb7 {[%clk 0:02:23.7]}
15... Rb8 {[%clk 0:02:41.8]} 16. exf6 {[%clk 0:02:14.5]} 16... Rxb7 {[%clk
0:02:39.1]} 17. fxg7 {[%clk 0:02:14.5]} 17... Re8 {[%clk 0:02:33.6]} 18. Ba3
{[%clk 0:02:10.2]} 18... d5 {[%clk 0:02:26.1]} 19. Bf8 {[%clk 0:02:02]} 19...
dxc4 {[%clk 0:02:21.5]} 20. bxc4 {[%clk 0:02:00.6]} 20... bxc4 {[%clk
0:02:21.9]} 21. dxc4 {[%clk 0:01:59.4]} 21... Nxc4 {[%clk 0:02:22.2]} 22. Qd3
{[%clk 0:01:57.6]} 22... e5 {[%clk 0:01:53.9]} 23. Qxc4 {[%clk 0:01:50]} 23...
e4 {[%clk 0:01:53.7]} 24. Rad1 {[%clk 0:01:44]} 24... d3 {[%clk 0:01:51.1]} 25.
Rfe1 {[%clk 0:01:39.3]} 25... Rc7 {[%clk 0:01:30.8]} 26. Qb4 {[%clk 0:01:28.6]}
26... Qd5 {[%clk 0:01:18.9]} 27. Re3 {[%clk 0:01:06.9]} 27... Rc2 {[%clk
0:01:11.6]} 28. Qa4 {[%clk 0:00:46.9]} 28... Qh5 {[%clk 0:00:54.8]} 29. Qxc2
{[%clk 0:00:29.3]} 29... dxc2 {[%clk 0:00:52.8]} 30. Rc1 {[%clk 0:00:28.9]}
30... Rd8 {[%clk 0:00:44.4]} 31. Bb4 {[%clk 0:00:17.9]} 31... Rd1+ {[%clk
0:00:41.7]} 32. Re1 {[%clk 0:00:17.6]} 32... Qe2 {[%clk 0:00:23.9]} 33. Rxc2
{[%clk 0:00:11.6]} 33... Rxe1+ {[%clk 0:00:20]} 34. Bxe1 {[%clk 0:00:10.4]}
34... Qxc2 {[%clk 0:00:20.5]} 35. Kf1 {[%clk 0:00:10]} 35... Qxa2 {[%clk
0:00:20.4]} 36. f5 {[%clk 0:00:09.9]} 36... Qxh2 {[%clk 0:00:20.9]} 37. f6
{[%clk 0:00:09.3]} 37... e3 {[%clk 0:00:18.2]} 38. g4 {[%clk 0:00:07.3]} 38...
e2# {[%clk 0:00:17.9]} 0-1

[Event "Early-Titled-Tuesday-Blitz-February-20-2024"]
[Site "Chess.com"]
[Date "2024.02.20"]
[Round "4"]
[White "cthake"]
[Black "noblerone"]
[Result "0-1"]
[WhiteElo "1765"]
[BlackElo "2530"]
[TimeControl "180+1"]
[EndTime "8:39:14 PST"]
[Termination "noblerone won by resignation"]

1. e4 {[%clk 0:03:00.9]} 1... c5 {[%clk 0:02:45.5]} 2. Nf3 {[%clk 0:02:58.5]}
2... e6 {[%clk 0:02:45.1]} 3. c3 {[%clk 0:02:58.4]} 3... Nf6 {[%clk 0:02:43.5]}
4. Bd3 {[%clk 0:02:56.8]} 4... b6 {[%clk 0:02:37.9]} 5. O-O {[%clk 0:02:52.5]}
5... Bb7 {[%clk 0:02:37.9]} 6. Re1 {[%clk 0:02:50.2]} 6... d6 {[%clk 0:02:37.3]}
7. Bc2 {[%clk 0:02:49.9]} 7... Be7 {[%clk 0:02:37.3]} 8. d4 {[%clk 0:02:49.8]}
8... O-O {[%clk 0:02:33.7]} 9. Bg5 {[%clk 0:02:47.8]} 9... h6 {[%clk 0:02:33.5]}
10. Bh4 {[%clk 0:02:47.3]} 10... Nc6 {[%clk 0:02:32]} 11. d5 {[%clk 0:02:45.4]}
11... exd5 {[%clk 0:02:30.8]} 12. Bxf6 {[%clk 0:02:43.9]} 12... Bxf6 {[%clk
0:02:28.9]} 13. exd5 {[%clk 0:02:44]} 13... Ne5 {[%clk 0:02:26.5]} 14. Nxe5
{[%clk 0:02:41.7]} 14... Bxe5 {[%clk 0:02:27.4]} 15. Qd3 {[%clk 0:02:33.9]}
15... g6 {[%clk 0:02:24.3]} 16. Nd2 {[%clk 0:02:30]} 16... Bg7 {[%clk
0:02:15.3]} 17. Nf3 {[%clk 0:02:28.9]} 17... a6 {[%clk 0:02:10.2]} 18. a4 {[%clk
0:02:23.3]} 18... Qd7 {[%clk 0:02:07.7]} 19. h3 {[%clk 0:02:19.6]} 19... b5
{[%clk 0:02:06.5]} 20. axb5 {[%clk 0:02:12.7]} 20... axb5 {[%clk 0:02:07.4]} 21.
Nh4 {[%clk 0:02:01.1]} 21... c4 {[%clk 0:01:44.1]} 22. Qd2 {[%clk 0:01:42.8]}
22... Rxa1 {[%clk 0:01:34.6]} 23. Rxa1 {[%clk 0:01:41.7]} 23... Qe7 {[%clk
0:01:34.9]} 24. Nf3 {[%clk 0:01:37]} 24... Qf6 {[%clk 0:01:28.9]} 25. Re1 {[%clk
0:01:32.5]} 25... Bc8 {[%clk 0:01:21.7]} 26. Qd4 {[%clk 0:01:25.7]} 26... Qxf3
{[%clk 0:00:39.4]} 27. Qxg7+ {[%clk 0:01:20]} 27... Kxg7 {[%clk 0:00:40.3]} 28.
gxf3 {[%clk 0:01:20.1]} 28... Bxh3 {[%clk 0:00:27.5]} 29. Re7 {[%clk 0:01:19.9]}
29... Rb8 {[%clk 0:00:24.7]} 30. Kh2 {[%clk 0:01:17.2]} 30... Kf6 {[%clk
0:00:21.2]} 31. Ra7 {[%clk 0:01:12.4]} 31... Bc8 {[%clk 0:00:20.4]} 32. Kg3
{[%clk 0:01:09.8]} 32... Bb7 {[%clk 0:00:18.3]} 33. Be4 {[%clk 0:01:05.2]} 33...
Ke5 {[%clk 0:00:18.9]} 34. Ra1 {[%clk 0:00:58.7]} 34... f5 {[%clk 0:00:18.8]}
35. Bc2 {[%clk 0:00:51.8]} 35... Bxd5 {[%clk 0:00:18]} 36. Re1+ {[%clk
0:00:52.5]} 36... Kf6 {[%clk 0:00:18.4]} 37. f4 {[%clk 0:00:52.2]} 37... Be6
{[%clk 0:00:17.6]} 38. Rh1 {[%clk 0:00:51.6]} 38... h5 {[%clk 0:00:16.8]} 39.
Rd1 {[%clk 0:00:51.5]} 39... d5 {[%clk 0:00:17.1]} 40. b3 {[%clk 0:00:49.7]}
40... b4 {[%clk 0:00:18]} 41. cxb4 {[%clk 0:00:48.2]} 41... Rxb4 {[%clk
0:00:18.9]} 42. bxc4 {[%clk 0:00:48.4]} 42... dxc4 {[%clk 0:00:19.4]} 43. Rd2
{[%clk 0:00:46.8]} 43... Rb2 {[%clk 0:00:17.9]} 44. Re2 {[%clk 0:00:45.3]} 44...
Bd5 {[%clk 0:00:16.2]} 45. f3 {[%clk 0:00:44.6]} 45... c3 {[%clk 0:00:15.2]} 46.
Kf2 {[%clk 0:00:42.9]} 46... Bc4 {[%clk 0:00:14]} 0-1

[Event "Early-Titled-Tuesday-Blitz-February-20-2024"]
[Site "Chess.com"]
[Date "2024.02.20"]
[Round "4"]
[White "GAusal"]
[Black "ACollins05"]
[Result "0-1"]
[WhiteElo "2296"]
[BlackElo "2571"]
[TimeControl "180+1"]
[EndTime "8:39:15 PST"]
[Termination "ACollins05 won by resignation"]

1. d4 {[%clk 0:03:00.9]} 1... d5 {[%clk 0:02:58.9]} 2. Nf3 {[%clk 0:03:00.7]}
2... Nf6 {[%clk 0:02:58.7]} 3. Bf4 {[%clk 0:03:01]} 3... e6 {[%clk 0:02:58.8]}
4. e3 {[%clk 0:03:01.6]} 4... Bd6 {[%clk 0:02:58.4]} 5. Ne5 {[%clk 0:03:00.8]}
5... O-O {[%clk 0:02:55.8]} 6. Bd3 {[%clk 0:03:00.9]} 6... c5 {[%clk 0:02:54.9]}
7. c3 {[%clk 0:03:00.6]} 7... Qc7 {[%clk 0:02:53.6]} 8. Nd2 {[%clk 0:02:59.2]}
8... Nbd7 {[%clk 0:02:53.4]} 9. Nxd7 {[%clk 0:02:59.2]} 9... Bxd7 {[%clk
0:02:49.8]} 10. Bxd6 {[%clk 0:02:59.2]} 10... Qxd6 {[%clk 0:02:50.7]} 11. Nf3
{[%clk 0:02:58.9]} 11... c4 {[%clk 0:02:49.4]} 12. Bc2 {[%clk 0:02:57.9]} 12...
b5 {[%clk 0:02:50.1]} 13. a3 {[%clk 0:02:57.3]} 13... a5 {[%clk 0:02:49.8]} 14.
Ne5 {[%clk 0:02:57.2]} 14... b4 {[%clk 0:02:49.8]} 15. axb4 {[%clk 0:02:55.6]}
15... axb4 {[%clk 0:02:50.7]} 16. O-O {[%clk 0:02:55.3]} 16... b3 {[%clk
0:02:49.4]} 17. Rxa8 {[%clk 0:02:47.5]} 17... Rxa8 {[%clk 0:02:50.3]} 18. Bb1
{[%clk 0:02:46.7]} 18... g6 {[%clk 0:02:39]} 19. Qe2 {[%clk 0:02:46.6]} 19...
Ra1 {[%clk 0:02:34.2]} 20. e4 {[%clk 0:02:45]} 20... Bb5 {[%clk 0:02:07]} 21.
exd5 {[%clk 0:02:39.7]} 21... exd5 {[%clk 0:02:07.9]} 22. f4 {[%clk 0:02:37.2]}
22... Qe7 {[%clk 0:02:01.4]} 23. f5 {[%clk 0:02:36.7]} 23... Kg7 {[%clk
0:01:47.4]} 24. fxg6 {[%clk 0:02:35.8]} 24... hxg6 {[%clk 0:01:48.3]} 25. Qf3
{[%clk 0:02:35]} 25... Be8 {[%clk 0:01:38.6]} 26. h3 {[%clk 0:02:31.2]} 26...
Ra5 {[%clk 0:01:27.9]} 27. g4 {[%clk 0:02:30.3]} 27... Nd7 {[%clk 0:01:24.9]}
28. Qf4 {[%clk 0:02:00.4]} 28... Nxe5 {[%clk 0:01:20.4]} 29. dxe5 {[%clk
0:02:00.1]} 29... Bd7 {[%clk 0:01:12.7]} 30. g5 {[%clk 0:01:56.4]} 30... Ra1
{[%clk 0:00:56.1]} 31. Qf6+ {[%clk 0:01:40.1]} 31... Qxf6 {[%clk 0:00:53.4]} 32.
exf6+ {[%clk 0:01:40.1]} 32... Kf8 {[%clk 0:00:51.9]} 33. h4 {[%clk 0:01:39.4]}
33... Bh3 {[%clk 0:00:28]} 34. Re1 {[%clk 0:01:34]} 34... Bf5 {[%clk 0:00:27]}
35. Kf2 {[%clk 0:01:10.8]} 35... Rxb1 {[%clk 0:00:25.1]} 36. Re2 {[%clk
0:01:07.3]} 36... Bc2 {[%clk 0:00:20.5]} 37. Rd2 {[%clk 0:01:04.6]} 37... Rxb2
{[%clk 0:00:20.7]} 38. Ke3 {[%clk 0:01:04.1]} 38... Rb1 {[%clk 0:00:16.5]} 39.
Rxd5 {[%clk 0:01:02.4]} 39... Re1+ {[%clk 0:00:16.3]} 40. Kf2 {[%clk 0:00:54.9]}
40... Re8 {[%clk 0:00:15.6]} 41. Rc5 {[%clk 0:00:51.3]} 41... Bd3 {[%clk
0:00:15.5]} 42. Rb5 {[%clk 0:00:49.3]} 42... Ra8 {[%clk 0:00:13.9]} 43. Ke3
{[%clk 0:00:48.5]} 43... Ke8 {[%clk 0:00:14.1]} 44. Re5+ {[%clk 0:00:46.7]}
44... Kd7 {[%clk 0:00:13.9]} 45. Re7+ {[%clk 0:00:44.4]} 45... Kd6 {[%clk
0:00:14.4]} 46. Rxf7 {[%clk 0:00:44.1]} 46... b2 {[%clk 0:00:14.3]} 47. Rb7
{[%clk 0:00:43.8]} 47... b1=Q {[%clk 0:00:14.2]} 48. Rxb1 {[%clk 0:00:42.8]}
48... Bxb1 {[%clk 0:00:15.1]} 49. h5 {[%clk 0:00:42.2]} 49... gxh5 {[%clk
0:00:16]} 50. g6 {[%clk 0:00:41.6]} 50... Bxg6 {[%clk 0:00:16.5]} 0-1